bitfinex-derivatives/quotes_SOLF0:USTF0_20240906
["timestamp","ask_amount","ask_price","bid_price","bid_amount"]
[1725614930772,3.8845,128.74,128.72,3.94019251]
[1725614932977,0.05641447,128.75,128.72,12.00549251]
[1725614933479,0.05641447,128.75,128.74,3.8843]
[1725614946979,0.05641447,128.75,128.74,15.8343]
[1725614949701,3.94041447,128.75,128.73,3.8845]
[1725614950401,3.94041447,128.75,128.72,3.94019251]
[1725614950585,3.94041447,128.75,128.72,0.05549251]
[1725614950586,3.8843,128.74,128.72,0.05549251]
[1725614952388,3.8843,128.74,128.72,3.94039251]
[1725614957194,12.00641447,128.75,128.72,0.05549251]
[1725614957498,11.95,128.74,128.72,0.05549251]
[1725614957793,3.8846,128.73,128.72,0.05549251]
[1725614961387,15.8346,128.73,128.72,0.05549251]
[1725614963388,3.8846,128.73,128.72,0.05549251]
[1725614980411,3.8846,128.73,128.72,0.05549251]
[1725614984009,3.8844,128.74,128.72,3.94029251]
[1725614984207,0.05641447,128.75,128.72,3.94029251]
[1725614984615,3.94061447,128.75,128.72,3.94029251]
[1725614985112,0.05641447,128.75,128.72,12.00549251]
[1725614985621,0.05641447,128.75,128.73,3.8844]
[1725614986910,0.05641447,128.75,128.74,3.8843]
[1725614987426,0.05641447,128.75,128.73,3.8845]
[1725614993214,0.05641447,128.75,128.74,3.8843]
[1725614994214,0.05641447,128.75,128.74,15.8343]
[1725615000327,0.05641447,128.75,128.74,3.8843]
[1725615000826,0.05641447,128.75,128.72,0.05549251]
[1725615001218,3.8846,128.74,128.72,0.05549251]
[1725615001921,0.05641447,128.75,128.73,11.95]
[1725615002225,0.05641447,128.75,128.72,0.05549251]
[1725615002425,0.05641447,128.75,128.74,11.95]
[1725615003425,0.05641447,128.75,128.74,3.8843]
[1725615005231,0.05641447,128.75,128.74,15.8343]
[1725615005430,262.9829,128.86,128.72,0.05549251]
[1725615005431,0.28564016,128.79,128.76,3.8836]
[1725615005631,13.2949,128.82,128.76,3.8836]
[1725615005930,3.8831,128.79,128.76,3.8836]
[1725615009029,4.16906674,128.77,128.76,0.04927474]
[1725615009223,0.28566674,128.77,128.76,0.04927474]
[1725615009424,0.04803752,128.79,128.76,0.04927474]
[1725615009626,11.95,128.77,128.76,0.04927474]
[1725615009821,4.16905815,128.77,128.76,0.04927474]
[1725615010129,11.99803752,128.79,128.76,0.04927474]
[1725615010426,4.16905222,128.78,128.76,0.04927474]
[1725615010630,3.8834,128.78,128.76,0.04927474]
[1725615010830,11.99803752,128.79,128.76,0.04927474]
[1725615011029,4.16894565,128.78,128.76,0.04927474]
[1725615011236,3.8833,128.78,128.76,0.04927474]
[1725615013640,3.8834,128.77,128.76,0.04927474]
[1725615015538,3.8833,128.78,128.76,0.04927474]
[1725615016136,3.93103752,128.79,128.76,3.93277474]
[1725615016330,0.04803752,128.79,128.76,11.99927474]
[1725615016551,0.04803752,128.79,128.78,11.95]
[1725615017557,0.04803752,128.79,128.78,15.8331]
[1725615021656,6.42476748,128.85,128.78,11.95]
[1725615021848,114.40339544,128.86,128.74,1.3565]
[1725615021849,102.45339544,128.86,128.81,11.95]
[1725615022054,0.28550198,128.85,128.81,11.95]
[1725615022454,3.8817,128.83,128.81,15.8321]
[1725615022655,3.8817,128.83,128.81,15.88144505]
[1725615023857,3.8819,128.82,128.81,11.99934505]
[1725615024062,3.8819,128.82,128.81,0.04934505]
[1725615024754,7.82046913,128.82,128.81,0.04934505]
[1725615024961,3.8819,128.82,128.81,0.04934505]
[1725615025558,7.69383203,128.82,128.81,0.04934505]
[1725615027057,3.8819,128.82,128.81,0.04934505]
[1725615027655,7.73112751,128.82,128.81,0.04934505]
[1725615027855,3.8819,128.82,128.81,0.04934505]
[1725615028752,3.8819,128.82,128.81,11.99934505]
[1725615028961,3.8818,128.83,128.81,15.88154505]
[1725615030866,99.62309544,128.86,128.82,11.95]
[1725615031569,3.8812,128.85,128.83,3.8816]
[1725615034576,3.8812,128.85,128.84,11.95]
[1725615035871,99.62309544,128.86,128.84,15.8313]
[1725615036171,2.7817,128.89,128.85,11.95]
[1725615036380,3.8806,128.87,128.85,11.95]
[1725615037265,3.8806,128.87,128.85,15.8309]
[1725615037870,3.8799,128.89,128.86,11.95]
[1725615038180,7.70113936,128.89,128.86,15.88377032]
[1725615038672,3.82123936,128.89,128.87,3.8803]
[1725615038975,11.95,128.93,128.87,3.8803]
[1725615039180,0.28541258,128.92,128.89,0.05829367]
[1725615039576,3.8798,128.9,128.89,0.05829367]
[1725615039882,4.16521278,128.9,128.89,0.05829367]
[1725615042177,3.8793,128.91,128.89,0.05829367]
[1725615042976,7.70711089,128.91,128.89,0.05829367]
[1725615043977,3.8795,128.9,128.89,0.05829367]
[1725615045583,4.1648814,128.9,128.89,0.05829367]
[1725615047681,4.45026385,128.9,128.89,0.05829367]
[1725615047879,4.16488245,128.9,128.89,0.05829367]
[1725615049180,0.28538245,128.9,128.89,0.05829367]
[1725615049988,4.16488245,128.9,128.89,0.05829367]
[1725615051692,4.16490443,128.9,128.89,0.05829367]
[1725615055084,3.8795,128.9,128.89,12.00829367]
[1725615055990,3.82781089,128.91,128.89,12.00829367]
[1725615056188,5.21072296,128.94,128.89,0.05829367]
[1725615056391,0.28537531,128.93,128.89,0.05829367]
[1725615056579,3.879,128.92,128.89,3.93809367]
[1725615056780,0.28537531,128.91,128.89,3.93809367]
[1725615057188,3.879,128.92,128.89,3.93809367]
[1725615057489,0.28537175,128.91,128.89,3.93809367]
[1725615057678,0.28537175,128.91,128.89,15.88809367]
[1725615057884,3.8788,128.93,128.9,3.8795]
[1725615058084,0.28536775,128.92,128.9,3.8795]
[1725615059095,4.16436775,128.92,128.9,3.8795]
[1725615059293,3.879,128.92,128.9,3.8795]
[1725615060689,3.8788,128.93,128.9,3.8795]
[1725615060891,0.2853621,128.92,128.89,15.88799367]
[1725615061086,1.4335,128.95,128.89,15.88799367]
[1725615061394,3.8789,128.92,128.89,15.88799367]
[1725615063388,3.8777,128.96,128.92,3.8787]
[1725615063691,13.276,128.99,128.93,0.04913329]
[1725615063888,0.2853296,128.97,128.93,0.04913329]
[1725615064086,3.8779,128.96,128.94,11.95]
[1725615064289,102.4054402,129.02,128.95,11.95]
[1725615064290,11.95,129.01,128.95,11.95]
[1725615064598,0.28528009,129.0,128.95,11.95]
[1725615064784,0.28528009,129.0,128.97,0.05156615]
[1725615065686,3.8772,128.98,128.97,0.05156615]
[1725615065885,4.16248009,128.98,128.97,0.05156615]
[1725615067691,0.28525281,128.98,128.97,0.05156615]
[1725615067891,0.28525281,128.98,128.97,12.00156615]
[1725615068788,0.28525281,129.0,128.97,12.00156615]
[1725615068988,0.28525281,128.99,128.97,12.00156615]
[1725615069189,0.28525281,128.98,128.97,12.00156615]
[1725615069585,0.28525281,128.98,128.97,0.05156615]
[1725615069791,0.28525281,129.0,128.97,0.05156615]
[1725615070098,3.8771,128.98,128.97,0.05156615]
[1725615070389,4.16235281,128.98,128.97,0.05156615]
[1725615070595,4.16235629,128.98,128.97,0.05156615]
[1725615071692,4.16236204,128.98,128.97,0.05156615]
[1725615075588,15.8271,128.98,128.97,0.05156615]
[1725615075897,16.11238094,128.98,128.97,0.05156615]
[1725615076198,4.16238094,128.98,128.97,0.05156615]
[1725615077093,16.11238094,128.98,128.97,0.05156615]
[1725615077301,4.16238094,128.98,128.97,0.05156615]
[1725615077990,3.8784,128.94,128.92,11.95]
[1725615078306,0.28528094,128.93,128.92,11.95]
[1725615078497,11.95,128.98,128.92,15.8289]
[1725615078498,3.8781,128.95,128.92,15.8289]
[1725615078795,0.28528094,128.94,128.92,15.8289]
[1725615078999,0.33684709,128.94,128.92,15.88128139]
[1725615079898,0.28531984,128.93,128.92,15.88128139]
[1725615080697,0.33688599,128.94,128.92,15.88128139]
[1725615080898,0.28531984,128.93,128.92,3.93128139]
[1725615081195,7.96775432,129.01,128.92,12.00238139]
[1725615081399,0.28527628,129.0,128.96,11.95]
[1725615081594,3.8774,128.97,128.96,11.95]
[1725615081795,4.16267628,128.97,128.96,11.95]
[1725615082199,0.28527628,128.97,128.96,11.95]
[1725615084301,0.28524321,128.97,128.96,11.95]
[1725615085203,0.28524816,128.97,128.96,11.95]
[1725615087204,4.1626451,128.97,128.96,11.95]
[1725615087400,0.2852451,128.97,128.95,0.05083682]
[1725615087707,0.2852451,128.96,128.95,0.05083682]
[1725615088803,3.8776,128.97,128.95,0.05083682]
[1725615089002,0.28528418,128.96,128.95,0.05083682]
[1725615089409,4.16298418,128.96,128.95,0.05083682]
[1725615092502,0.28528418,128.96,128.95,12.00083682]
[1725615093413,0.28528605,128.96,128.95,12.00083682]
[1725615094109,0.28528605,128.96,128.95,11.56086603]
[1725615097910,0.28527156,128.96,128.95,11.56086603]
[1725615100608,4.16297156,128.96,128.95,11.56086603]
[1725615102215,4.16298056,128.96,128.95,11.56086603]
[1725615105015,4.16298423,128.96,128.95,11.56086603]
[1725615105211,4.16298423,128.96,128.94,0.05278541]
[1725615105212,3.878,128.95,128.94,0.05278541]
[1725615105413,4.16328423,128.95,128.94,0.05278541]
[1725615106117,3.878,128.95,128.94,0.05278541]
[1725615106319,4.16329796,128.95,128.94,0.05278541]
[1725615108713,3.8794,128.91,128.83,7.7629]
[1725615108911,0.28529796,128.9,128.88,11.95]
[1725615109122,0.28529796,128.9,128.86,3.8805]
[1725615109312,0.28529796,128.9,128.84,2.6676]
[1725615109515,12.23529796,128.9,128.84,14.6176]
[1725615109708,0.28529796,128.89,128.84,14.6176]
[1725615109911,3.8806,128.87,128.86,0.05523641]
[1725615110107,4.16589796,128.87,128.86,0.05523641]
[1725615110317,4.16604682,128.87,128.86,0.05523641]
[1725615110511,0.28544682,128.87,128.86,12.00523641]
[1725615111617,0.3345001,128.88,128.86,12.00523641]
[1725615111811,0.28544682,128.87,128.86,15.88593641]
[1725615112010,0.04905328,128.88,128.86,15.88593641]
[1725615114019,0.04905328,128.88,128.86,33.75593641]
[1725615119127,0.04905328,128.88,128.87,3.8804]
[1725615119421,3.80636627,128.93,128.86,29.87523641]
[1725615119620,0.28537152,128.92,128.88,33.7]
[1725615119821,3.8794,128.91,128.88,33.7]
[1725615120212,1.393,128.96,128.9,29.82]
[1725615120418,3.8785,128.94,128.9,29.82]
[1725615120713,3.93194328,128.94,128.92,0.05899315]
[1725615122320,4.44931862,128.93,128.92,0.05899315]
[1725615122628,8.36520666,128.93,128.92,0.05899315]
[1725615124223,8.07984735,128.93,128.92,0.05899315]
[1725615126521,8.07985503,128.93,128.92,0.05899315]
[1725615130635,8.07985477,128.93,128.92,0.05899315]
[1725615133330,8.07984533,128.93,128.92,0.05899315]
[1725615134734,8.07984436,128.93,128.92,0.05899315]
[1725615139541,0.05344328,128.94,128.92,0.05899315]
[1725615140433,3.93194328,128.94,128.92,0.05899315]
[1725615141636,0.05344328,128.94,128.93,15.8086]
[1725615141835,0.05344328,128.94,128.92,0.05899315]
[1725615142036,0.05344328,128.94,128.92,11.98899315]
[1725615142242,0.05344328,128.94,128.92,15.86779315]
[1725615142438,0.05344328,128.94,128.92,11.98899315]
[1725615143337,0.05344328,128.94,128.93,3.8786]
[1725615144243,0.28529393,128.96,128.95,3.878]
[1725615144447,99.5003138,128.99,128.95,15.808]
[1725615144739,0.28525756,128.98,128.95,15.808]
[1725615144945,0.28525756,128.98,128.95,11.93]
[1725615145135,11.93,129.02,128.95,11.93]
[1725615145335,0.28522919,129.0,128.95,11.93]
[1725615145541,0.28522919,128.99,128.97,0.05179084]
[1725615147245,11.93,129.0,128.97,0.05179084]
[1725615147443,0.28522912,128.98,128.97,0.05179084]
[1725615147646,0.57045984,128.98,128.97,0.05179084]
[1725615147941,4.44755984,128.98,128.97,0.05179084]
[1725615151344,4.44759121,128.98,128.97,0.05179084]
[1725615153445,0.57049121,128.98,128.97,0.05179084]
[1725615153944,0.57049121,128.98,128.97,3.92919084]
[1725615154744,0.28526209,128.98,128.97,15.85919084]
[1725615154939,3.8766,129.0,128.97,15.85919084]
[1725615154940,0.28526209,128.99,128.97,15.85919084]
[1725615155246,0.28526209,128.98,128.97,15.85919084]
[1725615155440,0.28521255,128.98,128.97,11.98179084]
[1725615155841,0.28521255,129.0,128.97,11.98179084]
[1725615156153,7.84786224,129.01,128.97,11.98179084]
[1725615156154,0.28521079,128.99,128.97,11.98179084]
[1725615156358,7.84786224,129.01,128.98,3.877]
[1725615156540,0.28521059,129.0,128.98,3.877]
[1725615159356,7.84766224,129.01,128.98,3.877]
[1725615159656,0.28519366,129.0,128.98,3.877]
[1725615160148,0.28519366,129.0,128.99,3.8768]
[1725615161947,0.28519366,129.0,128.98,3.877]
[1725615164056,0.28519366,129.0,128.98,15.807]
[1725615167458,7.84776224,129.01,128.98,15.807]
[1725615167863,0.28519101,129.0,128.98,15.807]
[1725615170664,1.303,129.08,128.99,11.93]
[1725615170867,0.28517419,129.06,129.0,11.93]
[1725615171066,0.28517419,129.05,129.0,11.93]
[1725615171364,23.52644564,129.07,128.98,1.3602]
[1725615171365,0.28517419,129.04,129.02,11.98156095]
[1725615171564,0.28511789,129.03,129.02,11.98156095]
[1725615171763,3.8749,129.06,129.02,15.85726095]
[1725615171962,4.23145214,129.05,129.02,15.85726095]
[1725615172164,0.28511789,129.04,129.02,15.85726095]
[1725615172364,0.28511789,129.04,129.02,0.05156095]
[1725615172570,0.28511789,129.03,129.02,0.05156095]
[1725615172968,11.93,129.04,129.02,0.05156095]
[1725615173167,0.28511789,129.03,129.02,0.05156095]
[1725615173364,4.16071789,129.03,129.02,0.05156095]
[1725615173765,3.8756,129.03,129.02,0.05156095]
[1725615174974,15.8056,129.03,129.02,0.05156095]
[1725615176262,16.09077083,129.03,129.02,0.05156095]
[1725615179673,16.09077668,129.03,129.02,0.05156095]
[1725615182766,4.16077668,129.03,129.02,0.05156095]
[1725615182967,3.8756,129.03,129.02,0.05156095]
[1725615183475,3.8754,129.04,129.02,0.05156095]
[1725615183675,7.68472516,129.04,129.02,0.05156095]
[1725615183872,0.28513179,129.03,129.02,0.05156095]
[1725615184266,0.28510946,129.06,129.02,0.05156095]
[1725615184470,0.28510946,129.05,129.02,3.92726095]
[1725615184970,0.28510946,129.04,129.02,3.92726095]
[1725615185170,0.28510946,129.03,129.02,3.92726095]
[1725615185473,0.28510946,129.05,129.02,3.92726095]
[1725615185677,0.28510946,129.04,129.02,3.92726095]
[1725615185872,0.28510946,129.03,129.02,3.92726095]
[1725615186073,0.28510946,129.05,129.02,3.92726095]
[1725615186375,0.28510946,129.04,129.02,3.92726095]
[1725615186566,0.28510946,129.03,129.02,0.05156095]
[1725615186769,0.28510946,129.04,129.02,0.05156095]
[1725615186969,3.8751,129.05,129.02,0.05156095]
[1725615186970,0.28510946,129.03,129.02,0.05156095]
[1725615187166,0.28510946,129.04,129.02,0.05156095]
[1725615187370,0.28510946,129.03,129.02,0.05156095]
[1725615187576,3.8751,129.05,129.02,3.92736095]
[1725615187773,0.28511482,129.04,129.02,3.92736095]
[1725615191683,3.8751,129.05,129.02,3.92736095]
[1725615191882,0.28510558,129.04,129.02,3.92736095]
[1725615192180,0.28510558,129.04,129.03,15.8056]
[1725615192372,0.28510558,129.05,129.03,15.8056]
[1725615192575,107.61517168,129.09,129.04,11.93]
[1725615192779,4.15937942,129.08,129.05,15.805]
[1725615193078,4.06714626,129.07,129.05,15.86144386]
[1725615193276,3.78206684,129.07,129.05,11.98644386]
[1725615193479,11.93,129.12,129.05,11.98644386]
[1725615193679,3.874,129.09,129.05,11.93]
[1725615193879,0.28505106,129.08,129.07,11.98612138]
[1725615194089,0.28505106,129.12,129.07,11.98612138]
[1725615194382,3.8737,129.1,129.08,11.93]
[1725615194578,0.28503049,129.09,129.08,11.93]
[1725615195184,0.28503049,129.1,129.08,11.93]
[1725615195484,3.8734,129.11,129.08,11.93]
[1725615195485,0.2850288,129.09,129.08,11.93]
[1725615195876,0.2850288,129.1,129.08,11.93]
[1725615196184,0.2850288,129.09,129.08,11.93]
[1725615196681,0.2850288,129.09,129.07,11.98612138]
[1725615197082,0.2850288,129.09,129.07,15.86042138]
[1725615197278,0.2850288,129.08,129.07,15.86042138]
[1725615197481,0.28499279,129.1,129.07,15.86042138]
[1725615197685,0.28499279,129.09,129.07,15.86042138]
[1725615197883,0.28499279,129.08,129.07,15.86042138]
[1725615198473,0.28499279,129.09,129.07,15.86042138]
[1725615198678,0.28499279,129.08,129.07,3.93042138]
[1725615198882,0.28499279,129.1,129.07,3.93042138]
[1725615199087,0.28497471,129.09,129.08,11.93]
[1725615199485,0.28497485,129.09,129.08,11.93]
[1725615199782,0.28497485,129.09,129.07,0.05612138]
[1725615199783,0.28497485,129.09,129.07,11.98612138]
[1725615200778,0.28497485,129.09,129.07,15.86052138]
[1725615201784,4.15887485,129.09,129.07,0.05612138]
[1725615201986,0.28497485,129.08,129.07,0.05612138]
[1725615203580,0.28498035,129.08,129.07,0.05612138]
[1725615203779,3.8739,129.09,129.07,0.05612138]
[1725615204780,3.8741,129.08,129.07,0.05612138]
[1725615205585,1.3419,129.12,129.07,11.98612138]
[1725615205793,0.28498186,129.11,129.07,11.98612138]
[1725615206089,3.8736,129.1,129.07,11.98612138]
[1725615206282,0.28498186,129.09,129.07,11.98612138]
[1725615207182,4.15878186,129.09,129.07,11.98612138]
[1725615207387,3.8738,129.09,129.07,11.98612138]
[1725615208283,3.94396957,129.14,129.09,3.8738]
[1725615208481,0.28496527,129.13,129.1,11.93]
[1725615208690,0.28496527,129.12,129.1,0.0560636]
[1725615208986,0.28496527,129.12,129.11,11.93]
[1725615209981,0.28496527,129.13,129.11,11.93]
[1725615210286,0.28496527,129.12,129.11,11.93]
[1725615210485,0.28496527,129.13,129.11,11.93]
[1725615210689,0.28496527,129.12,129.11,11.93]
[1725615210889,4.15756527,129.13,129.11,11.93]
[1725615211185,0.28496527,129.12,129.11,11.93]
[1725615211581,4.2158135,129.12,129.11,11.93]
[1725615215291,4.2158135,129.12,129.1,0.0560636]
[1725615215492,3.93087979,129.12,129.11,11.93]
[1725615215695,0.56986473,129.12,129.11,11.93]
[1725615215991,4.51292362,129.12,129.11,11.93]
[1725615216183,0.28493145,129.12,129.11,11.93]
[1725615216589,0.28493145,129.12,129.11,15.803]
[1725615216789,3.80858798,129.12,129.11,15.803]
[1725615216985,4.09351943,129.12,129.11,15.803]
[1725615217287,0.28493145,129.12,129.11,15.803]
[1725615217597,0.28493145,129.13,129.11,15.803]
[1725615217786,0.28493145,129.12,129.11,15.803]
[1725615217984,0.28493145,129.13,129.11,15.803]
[1725615218292,7.68215056,129.14,129.11,15.803]
[1725615218293,0.28493145,129.12,129.11,15.803]
[1725615218493,0.28493145,129.13,129.11,15.803]
[1725615218693,0.28493145,129.12,129.11,15.803]
[1725615219289,0.28493145,129.13,129.11,15.803]
[1725615219489,7.68128313,129.14,129.11,15.803]
[1725615219684,0.28490047,129.13,129.11,15.803]
[1725615220188,4.15760047,129.13,129.11,11.93]
[1725615220395,3.8727,129.13,129.11,11.93]
[1725615220793,0.28490017,129.12,129.11,11.93]
[1725615220996,3.8727,129.13,129.11,11.93]
[1725615221887,0.28490215,129.12,129.11,11.93]
[1725615222296,7.68138313,129.14,129.11,11.93]
[1725615222490,0.2849019,129.13,129.11,11.93]
[1725615223289,0.2849019,129.13,129.11,15.8032]
[1725615223802,0.28490311,129.12,129.11,15.8032]
[1725615224493,7.68138313,129.14,129.11,15.8032]
[1725615224494,0.28490311,129.13,129.11,15.8032]
[1725615224697,0.28490311,129.12,129.11,15.8032]
[1725615225300,0.28490311,129.13,129.11,15.8032]
[1725615226203,0.28490311,129.13,129.1,0.0560636]
[1725615226696,3.8729,129.12,129.1,0.0560636]
[1725615226995,0.28490311,129.11,129.1,0.0560636]
[1725615227594,0.28493355,129.11,129.1,0.0560636]
[1725615228804,0.28493355,129.11,129.1,3.9295636]
[1725615228998,0.28493355,129.12,129.1,0.0560636]
[1725615229299,0.28493355,129.11,129.1,0.0560636]
[1725615230400,4.15813355,129.11,129.1,0.0560636]
[1725615231693,4.15817289,129.11,129.1,0.0560636]
[1725615232300,3.874,129.09,129.05,11.93]
[1725615232500,4.18096812,129.08,129.05,11.93]
[1725615232704,0.28497289,129.07,129.05,11.93]
[1725615232902,3.89638277,129.07,129.05,11.93]
[1725615233092,3.8746,129.07,129.05,11.93]
[1725615233293,3.79329566,129.09,129.05,11.98380796]
[1725615233503,0.28498982,129.08,129.06,11.93]
[1725615233707,7.82036369,129.1,129.07,15.8043]
[1725615233898,3.8736,129.1,129.07,15.8043]
[1725615234510,7.65497627,129.1,129.07,15.8043]
[1725615234813,7.65497627,129.1,129.07,11.93]
[1725615235301,3.8738,129.09,129.07,11.93]
[1725615235505,3.8738,129.09,129.06,15.86346045]
[1725615235810,3.9260716,129.09,129.06,15.86346045]
[1725615236307,0.0522716,129.09,129.06,15.86346045]
[1725615237010,0.33726139,129.09,129.06,15.86346045]
[1725615237201,0.0522716,129.09,129.06,15.86346045]
[1725615237406,0.33726139,129.09,129.06,15.86346045]
[1725615237811,0.0522716,129.09,129.06,15.86346045]
[1725615238011,0.0522716,129.09,129.07,15.8044]
[1725615238709,0.0522716,129.09,129.08,15.8041]
[1725615239408,0.0522716,129.09,129.07,15.8042]
[1725615241306,0.0522716,129.09,129.06,3.93346045]
[1725615241520,3.8741,129.08,129.06,0.05886045]
[1725615241709,0.0522716,129.09,129.06,0.05886045]
[1725615242010,3.8744,129.07,129.06,0.05886045]
[1725615242216,4.1594266,129.07,129.06,0.05886045]
[1725615242606,4.1594266,129.07,128.99,11.93]
[1725615242607,12.2150266,129.07,128.99,11.93]
[1725615242909,11.93,129.03,128.97,14.6049]
[1725615243214,0.2850266,129.02,128.97,13.2392]
[1725615243424,3.83729555,129.01,128.97,13.2392]
[1725615243705,0.05950906,129.01,128.98,11.98732516]
[1725615243904,3.9519327,129.01,128.98,0.05732516]
[1725615244106,0.05950906,129.01,128.98,3.93432516]
[1725615244412,0.34464148,129.01,128.98,0.05732516]
[1725615244609,7.74629716,129.01,128.98,0.05732516]
[1725615244910,0.05950906,129.01,128.98,0.05732516]
[1725615245108,0.05950906,129.01,128.99,3.8767]
[1725615245305,0.05950906,129.01,128.98,0.05732516]
[1725615245907,0.05950906,129.01,128.99,29.81]
[1725615246308,0.05950906,129.01,128.99,33.6866]
[1725615249216,3.93570906,129.01,128.98,3.93422516]
[1725615249720,0.05950906,129.01,128.99,3.8766]
[1725615250625,0.05950906,129.01,128.98,0.05732516]
[1725615251420,3.8768,128.99,128.98,0.05732516]
[1725615253017,0.05950906,129.01,128.98,0.05732516]
[1725615253720,0.05950906,129.01,128.99,3.8766]
[1725615253923,0.05950906,129.01,128.98,0.05732516]
[1725615254120,0.05950906,129.01,128.99,3.8768]
[1725615257421,3.93580906,129.01,128.98,3.93422516]
[1725615258426,0.05950906,129.01,128.99,3.8768]
[1725615259123,0.05950906,129.01,128.98,0.05732516]
[1725615259732,3.8765,129.0,128.98,0.05732516]
[1725615263228,3.8768,128.99,128.98,0.05732516]
[1725615263529,0.05950906,129.01,128.98,0.05732516]
[1725615263920,3.93590906,129.01,128.98,0.05732516]
[1725615264329,0.05950906,129.01,128.98,0.05732516]
[1725615264528,0.05950906,129.01,128.98,3.93422516]
[1725615265129,3.93590906,129.01,128.98,0.05732516]
[1725615265330,0.05950906,129.01,128.98,0.05732516]
[1725615265834,3.8765,129.0,128.98,0.05732516]
[1725615266522,0.05950906,129.01,128.98,0.05732516]
[1725615267426,0.05950906,129.01,128.99,3.8766]
[1725615268228,0.05950906,129.01,129.0,3.8765]
[1725615272726,3.93580906,129.01,128.98,3.93412516]
[1725615274529,3.8765,129.0,128.98,0.05732516]
[1725615275139,3.8765,129.0,128.98,3.93442516]
[1725615276631,3.93590906,129.01,128.98,3.93442516]
[1725615283744,3.8765,129.0,128.98,3.93442516]
[1725615287741,0.05950906,129.01,128.99,11.91]
[1725615288148,0.05950906,129.01,128.98,0.05732516]
[1725615288349,11.96950906,129.01,128.98,0.05732516]
[1725615288552,0.05950906,129.01,128.98,0.05732516]
[1725615288852,3.8767,129.0,128.98,0.05732516]
[1725615291253,3.8768,128.99,128.98,0.05732516]
[1725615291647,0.05950906,129.01,128.98,3.93442516]
[1725615291648,3.8767,129.0,128.98,3.93442516]
[1725615293055,0.05950906,129.01,128.99,11.91]
[1725615293553,0.05950906,129.01,128.99,15.7866]
[1725615296160,0.05950906,129.01,129.0,15.7865]
[1725615300056,0.05950906,129.01,129.0,19.62829554]
[1725615300363,0.28507555,129.05,129.02,3.8757]
[1725615300560,1.3719,129.07,129.02,11.91]
[1725615300755,3.8751,129.05,129.03,3.8756]
[1725615301163,3.8751,129.05,129.03,3.93174039]
[1725615301468,3.93062764,129.05,129.03,3.93174039]
[1725615302065,3.8753,129.04,129.03,0.05614039]
[1725615302565,16.07038951,129.04,129.03,0.05614039]
[1725615304057,11.91,129.04,128.97,3.8774]
[1725615304262,11.91,128.99,128.94,2.6207]
[1725615304466,3.84149395,128.98,128.94,2.6207]
[1725615304759,1.428,129.05,128.96,3.8777]
[1725615304760,3.8765,129.0,128.96,3.8777]
[1725615304956,3.93999379,128.99,128.96,3.8777]
[1725615305164,3.93999379,128.99,128.96,3.92809789]
[1725615305363,7.81689379,128.99,128.96,3.92809789]
[1725615305971,15.84999379,128.99,128.96,0.05039789]
[1725615306869,3.8773,128.98,128.96,0.05039789]
[1725615307766,1.3438,129.02,128.96,0.05039789]
[1725615307767,1.428,129.05,128.97,11.91]
[1725615308065,0.05160508,129.02,129.0,29.85503291]
[1725615308455,0.05160508,129.02,129.01,3.8762]
[1725615315873,3.86479002,129.02,129.0,0.05503291]
[1725615316168,0.05160508,129.02,129.0,0.05503291]
[1725615316373,3.8762,129.01,129.0,0.05503291]
[1725615316570,7.67930227,129.01,129.0,0.05503291]
[1725615319181,7.96444857,129.01,129.0,0.05503291]
[1725615319477,7.67930227,129.01,129.0,0.05503291]
[1725615320374,7.96445032,129.01,129.0,0.05503291]
[1725615320573,7.67930227,129.01,129.0,0.05503291]
[1725615320778,7.96445032,129.01,129.0,0.05503291]
[1725615321178,7.67930227,129.01,129.0,0.05503291]
[1725615321882,7.96445032,129.01,129.0,0.05503291]
[1725615322272,7.96445537,129.01,129.0,0.05503291]
[1725615322579,4.08825537,129.01,128.94,1.3059]
[1725615322779,4.08825537,129.01,128.95,3.8778]
[1725615322780,0.2851531,129.0,128.95,3.8778]
[1725615322974,3.877,128.99,128.95,3.8778]
[1725615323172,3.85354747,128.98,128.95,3.8778]
[1725615323577,3.90574244,128.98,128.95,3.93131528]
[1725615324382,7.78284244,128.98,128.95,3.93131528]
[1725615324680,29.85219497,128.98,128.87,29.8]
[1725615324983,29.8,128.94,128.88,1.388]
[1725615325286,29.8,128.94,128.85,29.8]
[1725615325772,29.8,128.94,128.88,0.05152064]
[1725615326384,29.8,128.92,128.88,0.05152064]
[1725615326579,1.392,128.91,128.88,0.05152064]